fUSD/lending_fUSD_20260121
["ID","MTS","AMOUNT","RATE_DAILY","PERIOD"]
[402973746,1769020237796,-207.359568,0.00043171,120]
[402973747,1769020237861,-393.91632422,0.00049999,120]
[402973748,1769020237927,-204.12907572,0.00049999,120]
[402973749,1769020237992,-228.05260314,0.00049999,120]
[402973750,1769020238063,-500.0,0.00049999,120]
[402973753,1769020238130,-500.0,0.00049999,120]
[402973754,1769020238195,-165.89227729,0.00049999,120]
[402973755,1769020238262,-298.46993549,0.00049999,120]
[402973756,1769020238327,-173.89465447,0.00049999,120]
[402973757,1769020238393,-153.27,0.00049999,120]
[402973758,1769020238463,-1049.45422232,0.0005,120]
[402973759,1769020238534,-1083.94,0.000509,30]
[402973760,1769020238601,-2598980.83620227,0.00052999,120]
[402973761,1769020238666,-1000.0,0.00052999,120]
[402973762,1769020238728,-151.0,0.00052999,120]
[402973763,1769020238792,-6389189.71877632,0.00052999,30]
[402973764,1769020238897,-500.0,0.00017017,2]
[402973765,1769020238906,-500.0,0.00017017,2]
[402973766,1769020238916,-500.0,0.00017017,2]
[402973767,1769020238926,-500.0,0.00017017,2]
[402973768,1769020238936,-500.0,0.00017017,2]
[402973769,1769020238947,-565.05189025,0.00017017,2]
[402973770,1769020238959,-379.42999997,0.00017017,2]
[402973771,1769020238968,-6937.72360984,0.00017018,2]
[402973772,1769020239027,-2256.70555665,0.00017018,2]
[402973773,1769020239039,-3557.83562371,0.00017018,2]
[402973774,1769020239051,-1709.25185107,0.00017018,2]
[402973775,1769020239063,-880108.06450508,0.00017018,2]
[402973776,1769020239077,-890.83092364,0.00017073,2]
[402973777,1769020239088,-1200.0,0.000171,6]
[402973778,1769020239099,-1284.29468614,0.00017108,2]
[402973779,1769020239108,-249694.30576485,0.00017118,2]
[402973780,1769020239118,-500.0,0.00017173,2]
[402973781,1769020239128,-500.0,0.00017173,2]
[402973782,1769020239137,-890.83092355,0.00017176,2]
[402973783,1769020239147,-2400.0,0.000172,6]
[402973784,1769020239156,-1342.21,0.00017276,2]
[402973785,1769020239166,-890.83092355,0.00017279,2]
[402973786,1769020239175,-502.92,0.00017289,2]
[402973787,1769020239184,-3700.0,0.000173,6]
[402973788,1769020239194,-166.66,0.00017323,2]
[402973789,1769020239205,-999.99,0.00017323,2]
[402973790,1769020239214,-150.99,0.00017323,2]
[402973791,1769020239224,-151.0,0.00017339,2]
[402973792,1769020239233,-890.83092355,0.00017382,2]
[402973793,1769020239242,-807.90883873,0.000174,2]
[402973794,1769020239252,-4900.0,0.000174,6]
[402973795,1769020239261,-807.90883871,0.00017471,2]
[402973796,1769020239270,-890.83092355,0.00017485,2]
[402973797,1769020239279,-3230.03784841,0.00017487,2]
[402973798,1769020239289,-23805.47380936,0.000175,2]
[402973799,1769020239298,-1778.26926384,0.000175,3]
[402973800,1769020239308,-6200.0,0.000175,6]
[402973801,1769020239318,-150.0,0.00017518,2]
[402973802,1769020239328,-2414.41,0.00017519,2]
[402973803,1769020239337,-9999.99,0.00017519,2]
[402973804,1769020239347,-9999.99,0.00017519,2]
[402973805,1769020239356,-299.99,0.00017519,4]
[402973806,1769020239366,-2110.06,0.00017519,2]
[402973807,1769020239375,-152.14592756,0.0001752,2]
[402973808,1769020239384,-3230.03784837,0.00017533,2]
[402973809,1769020239394,-807.90883871,0.00017543,2]
[402973810,1769020239403,-500.0,0.00017561,2]
[402973811,1769020239412,-319.34433213,0.00017561,2]
[402973812,1769020239422,-500.0,0.00017561,2]
[402973813,1769020239432,-500.0,0.00017561,2]
[402973814,1769020239443,-500.0,0.00017561,2]
[402973815,1769020239454,-500.0,0.00017561,2]
[402973816,1769020239469,-3230.03784837,0.00017579,2]
[402973817,1769020239482,-890.83092355,0.00017587,2]
[402973818,1769020239492,-1200.0,0.000176,6]
[402973819,1769020239502,-807.90883871,0.00017614,2]
[402973820,1769020239511,-157.10162998,0.0001762,2]
[402973821,1769020239525,-3230.03784837,0.00017625,2]
[402973822,1769020239535,-3230.03784837,0.00017671,2]
[402973823,1769020239545,-807.90883871,0.00017686,2]
[402973824,1769020239555,-890.83092355,0.0001769,2]
[402973825,1769020239564,-1200.0,0.000177,6]
[402973826,1769020239574,-3230.03784837,0.00017716,2]
[402973827,1769020239583,-880.624,0.0001772,2]
[402973828,1769020239595,-1000.0,0.00017721,2]
[402973829,1769020239604,-1000.0,0.00017721,2]
[402973830,1769020239684,-807.90883871,0.00017757,2]
[402973831,1769020239694,-3230.03784837,0.00017762,2]
[402973832,1769020239704,-150.00182388,0.00017784,2]
[402973833,1769020239714,-890.83092355,0.00017793,2]
[402973834,1769020239723,-1200.0,0.000178,6]
[402973835,1769020239733,-3230.03784837,0.00017808,2]
[402973836,1769020239742,-807.90883871,0.00017829,2]
[402973837,1769020239752,-3230.03784837,0.00017854,2]
[402973838,1769020239762,-166.66,0.00017894,2]
[402973839,1769020239771,-890.83092355,0.00017896,2]
[402973840,1769020239780,-1200.0,0.000179,6]
[402973841,1769020239789,-807.90883871,0.000179,2]
[402973842,1769020239798,-306.36625612,0.000179,2]
[402973843,1769020239808,-6476.99702578,0.000179,2]
[402973844,1769020239818,-3230.03784837,0.000179,2]
[402973845,1769020239830,-11232.46724472,0.000179,2]
[402973846,1769020239840,-1089.16724598,0.000179,2]
[402973847,1769020239850,-502.92,0.00017914,2]
[402973848,1769020239859,-817.64038412,0.00017922,2]
[402973849,1769020239868,-1284.29468614,0.0001799,2]
[402973850,1769020239878,-1284.29468614,0.0001799,2]
[402973851,1769020239887,-151.0,0.00017997,2]
[402973852,1769020239896,-1105.4903607,0.00017999,5]
[402973853,1769020239905,-300.0,0.00017999,2]
[402973854,1769020239914,-890.83092355,0.00017999,2]
[402973855,1769020239923,-300.0,0.00017999,2]
[402973856,1769020239933,-666.0,0.00017999,2]
[402973857,1769020239942,-11836.50726652,0.00017999,2]
[402973858,1769020239952,-4218189.79412462,0.00018,2]
[402973859,1769020239966,-107213.61154272,0.00018,2]
[402973860,1769020239977,-615.19451959,0.00018,2]
[402973861,1769020239988,-2043.10991138,0.00018,2]
[402973862,1769020240003,-620.48504702,0.00018,2]
[402973863,1769020240014,-3751.93058712,0.00018,2]
[402973865,1769020240223,-2179.26069336,0.00018,2]
[402973866,1769020240235,-6945416.90636732,0.00018,2]
[402973867,1769020240246,-591.07158026,0.00018,2]
[402973868,1769020240278,-92482.87015238,0.00018,2]
[402973869,1769020240288,-1998.5348,0.00018,2]
[402973870,1769020240332,-615.00501975,0.00018,2]
[402973871,1769020240343,-3057.20276255,0.00018,2]
[402973872,1769020240354,-838.48,0.00018,2]
[402973881,1769020243191,-151.0,0.0001739,2]
[402973882,1769020243200,-1752809.04819466,0.00018,2]
[402973883,1769020243213,-86373.4856824,0.00018,2]
[402973884,1769020243224,-8710.36797746,0.00018,2]
[402973886,1769020243506,-813.5246592,0.00018,2]
[402973894,1769020246145,-789.88461245,0.00018,2]
[402973895,1769020246199,-282.3,0.00018,2]
[402973896,1769020246254,-1252.613868,0.00018,2]
[402973897,1769020246311,-351.5521247,0.00018,2]
[402973898,1769020255012,-1014.76659019,0.000419,120]
[402973899,1769020255076,-1014.76659019,0.000419,120]
[402973900,1769020255140,-1014.76659019,0.000419,120]
[402973901,1769020255204,-1014.76659019,0.000419,120]
[402973902,1769020255269,-50019.3721928,0.000427,30]
[402973903,1769020255390,-150.0,0.00052998,120]
[402973904,1769020255451,-150.0,0.00052998,120]
[402973905,1769020255511,-200.0,0.00052998,120]
[402973906,1769020255573,-150.0,0.00052998,120]
[402973907,1769020255631,-150.0,0.00052998,120]
[402973908,1769020255687,-150.0,0.00052998,120]
[402973909,1769020255746,-150.0,0.00052998,120]
[402973910,1769020255807,-194.0,0.00052998,120]
[402973911,1769020255865,-150.0,0.00052998,120]
[402973912,1769020255928,-200.0,0.00052998,120]
[402973913,1769020255992,-500.0,0.00052998,60]
[402973914,1769020256064,-500.0,0.00052998,60]
[402973915,1769020256141,-500.0,0.00052998,60]
[402973916,1769020256207,-500.0,0.00052998,60]
[402973917,1769020256273,-578.0,0.00052998,60]
[402973918,1769020256341,-150.0,0.00052998,120]
[402973919,1769020256402,-150.0,0.00052998,120]
[402973920,1769020256463,-200.0,0.00052998,120]
[402973921,1769020256527,-150.0,0.00052998,120]
[402973922,1769020256589,-150.0,0.00052998,120]
[402973923,1769020256650,-200.0,0.00052998,120]
[402973924,1769020256712,-150.0,0.00052998,120]
[402973925,1769020256774,-150.0,0.00052998,120]
[402973926,1769020256835,-200.0,0.00052998,120]
[402973927,1769020256898,-2610809.28122368,0.00052999,30]
[402973928,1769020256961,-6329390.28022276,0.00052999,30]
[402973929,1769020261842,-1014.76659019,0.000419,120]
[402973930,1769020261964,-2257976.96254394,0.00052999,30]
[402973931,1769020262030,-797.0,0.00052999,120]
[402973932,1769020262094,-305.3617911,0.00053,120]
[402973933,1769020262289,-144059.44128593,0.00053,120]
[402973934,1769020262356,-104055.03824322,0.00053,120]
[402973935,1769020262419,-6491791.42954562,0.00053,120]
[402973936,1769020265738,-2488.0,0.00041785,30]
[402973937,1769020265807,-1014.76659019,0.000419,120]
[402973938,1769020265875,-2488.0,0.00042216,30]
[402973939,1769020265943,-2488.0,0.00042646,30]
[402973940,1769020266017,-2488.0,0.00043077,30]
[402973941,1769020266128,-2488.0,0.00043508,30]
[402973942,1769020266201,-2488.0,0.00043939,30]
[402973943,1769020266275,-240.5,0.00049026,120]
[402973944,1769020266346,-1359.1,0.00049837,120]
[402973945,1769020266413,-300.0,0.00052998,30]
[402973946,1769020266478,-1733756.13672127,0.00053,120]
[402973947,1769020266540,-2975487.9057805,0.00053,120]
[402973948,1769020266603,-1000.0,0.00053,120]
[402973949,1769020266664,-201.0,0.00053,30]
[402973950,1769020266729,-16519.59290871,0.0005307,120]
[402973951,1769020266793,-500.0,0.0005315,120]
[402973952,1769020266857,-237448.71780753,0.00053356,120]
[402973953,1769020266921,-319355.19134643,0.00053371,120]
[402973954,1769020266988,-8220.591683,0.00053372,120]
[402973955,1769020267058,-59882.38284155,0.00053377,120]
[402973956,1769020267122,-25140.35910274,0.00053381,120]
[402973957,1769020267196,-500.0,0.0005339,120]
[402973958,1769020267271,-500.0,0.0005339,120]
[402973959,1769020267343,-500.0,0.0005339,120]
[402973960,1769020267407,-500.0,0.0005339,120]
[402973961,1769020267473,-500.0,0.0005339,120]
[402973962,1769020267539,-500.0,0.0005339,120]
[402973963,1769020267602,-500.0,0.0005339,120]
[402973964,1769020267665,-294.4754524,0.0005339,120]
[402973965,1769020267729,-520.42422605,0.0005339,120]
[402973966,1769020267792,-520.42422605,0.0005339,120]
[402973967,1769020267856,-520.42422605,0.0005339,120]
[402973968,1769020267920,-520.42422605,0.0005339,120]
[402973969,1769020267984,-520.42422605,0.0005339,120]
[402973970,1769020268055,-520.42422605,0.0005339,120]
[402973971,1769020268124,-520.42422605,0.0005339,120]
[402973972,1769020268191,-520.42422605,0.0005339,120]
[402973973,1769020268258,-520.42422605,0.0005339,120]
[402973974,1769020268323,-520.42422605,0.0005339,120]
[402973975,1769020268389,-520.42422605,0.0005339,120]
[402973976,1769020268454,-520.42422605,0.0005339,120]
[402973977,1769020268519,-520.42422605,0.0005339,120]
[402973978,1769020268588,-520.42422605,0.0005339,120]
[402973979,1769020268651,-520.42422604,0.0005339,120]
[402973980,1769020268714,-520.42422604,0.0005339,120]
[402973981,1769020268776,-520.42422604,0.0005339,120]
[402973982,1769020268839,-520.42422604,0.0005339,120]
[402973983,1769020268901,-520.42422604,0.0005339,120]
[402973984,1769020268969,-520.42422604,0.0005339,120]
[402973985,1769020269043,-266.49683347,0.0005339,120]
[402973986,1769020269111,-311923.6795886,0.00053395,120]
[402973987,1769020269180,-304900.06878148,0.00053398,120]
[402973988,1769020269249,-151.0,0.000534,120]
[402973989,1769020269319,-190.0,0.00053403,120]
[402973990,1769020269384,-84171.0,0.00053453,120]
[402973991,1769020269448,-109142.5847431,0.00053493,120]
[402973992,1769020269512,-2779697.96529809,0.000535,120]
[402973996,1769020283233,-151.0,0.00043171,120]
[402973997,1769020283302,-151.0,0.00043171,120]
[402973998,1769020283369,-151.0,0.00043171,120]
[402973999,1769020283434,-151.0,0.00043171,120]
[402974000,1769020283501,-2488.0,0.00044369,30]
[402974001,1769020283571,-524.72711116,0.0005,120]
[402974002,1769020283637,-311.1,0.00052998,30]
[402974003,1769020283709,-285.81964044,0.00052998,30]
[402974004,1769020283787,-592.93935129,0.00052998,30]
[402974005,1769020283867,-151.0,0.00052998,30]
[402974006,1769020283935,-156.587,0.00052998,30]
[402974007,1769020284003,-414.0,0.00052998,30]
[402974008,1769020284069,-429.318,0.00052998,30]
[402974009,1769020284134,-162.380719,0.00052998,30]
[402974010,1769020284200,-168.3888056,0.00052998,30]
[402974011,1769020284281,-445.202766,0.00052998,30]
[402974012,1769020284358,-461.67526834,0.00052998,30]
[402974013,1769020284429,-174.61919141,0.00052998,30]
[402974014,1769020284493,-229.08844694,0.00052998,30]
[402974015,1769020284561,-478.75725327,0.00052998,30]
[402974016,1769020284629,-496.47127164,0.00052998,30]
[402974017,1769020284693,-198.09315842,0.00052998,30]
[402974018,1769020284759,-151.0,0.00052998,30]
[402974019,1769020284824,-151.0,0.00052998,30]
[402974020,1769020284887,-151.0,0.00052998,30]
[402974021,1769020284954,-151.0,0.00052998,30]
[402974022,1769020285022,-151.0,0.00052998,30]
[402974023,1769020285087,-151.0,0.00052998,30]
[402974024,1769020285154,-151.0,0.00052998,30]
[402974025,1769020285220,-151.0,0.00052998,30]
[402974026,1769020285289,-151.0,0.00052998,30]
[402974027,1769020285354,-151.0,0.00052998,30]
[402974028,1769020285417,-150.0,0.00053499,120]
[402974029,1769020285481,-18166.60223775,0.000535,120]
[402974030,1769020285546,-5000000.0,0.000535,120]
[402974031,1769020285607,-2070.44551159,0.000535,120]
[402974032,1769020285667,-5694.58873926,0.000535,120]
[402974033,1769020285728,-20000.0,0.000535,120]
[402974034,1769020285790,-797.0,0.00053547,120]
[402974035,1769020285851,-84171.0,0.00053553,120]
[402974036,1769020285916,-500.0,0.00053644,60]
[402974037,1769020285986,-500.0,0.00053644,60]
[402974038,1769020286067,-84171.0,0.00053653,120]
[402974039,1769020286145,-500.0,0.00053698,120]
[402974040,1769020286212,-150.0,0.00053726,120]
[402974041,1769020286290,-84171.0,0.00053753,120]
[402974042,1769020286361,-70102.46863583,0.000538,120]
[402974043,1769020286424,-1000.0,0.000538,120]
[402974044,1769020286486,-3500.0,0.0005385,73]
[402974045,1769020286550,-190.0,0.00053852,120]
[402974046,1769020286681,-84171.0,0.00053853,120]
[402974047,1769020286743,-150.0,0.00053898,120]
[402974048,1769020286804,-100150.0,0.000539,120]
[402974049,1769020286864,-2186.37051696,0.000539,30]
[402974050,1769020286944,-84171.0,0.00053953,120]
[402974051,1769020287025,-94381.94472579,0.0005399,120]
[402974052,1769020287091,-1000.0,0.00053999,120]
[402974053,1769020287162,-1000.0,0.00054,120]
[402974054,1769020287232,-300.0,0.00054,120]
[402974055,1769020287301,-200.0,0.00054,120]
[402974056,1769020287363,-3486.69866683,0.00054,120]
[402974057,1769020287425,-10000.0,0.00054,90]
[402974058,1769020287485,-919.50110083,0.00054,120]
[402974059,1769020287545,-150.0,0.00054,50]
[402974060,1769020287605,-30059.35,0.00054,120]
[402974061,1769020287663,-4000.0,0.00054,120]
[402974062,1769020287719,-5000.0,0.00054,120]
[402974063,1769020287779,-5000.0,0.00054,120]
[402974064,1769020287839,-5000.0,0.00054,120]
[402974065,1769020287900,-5000.0,0.00054,120]
[402974066,1769020287964,-5000.0,0.00054,120]
[402974067,1769020288028,-5000.0,0.00054,120]
[402974068,1769020288091,-5000.0,0.00054,120]
[402974069,1769020288155,-5000.0,0.00054,120]
[402974070,1769020288220,-5000.0,0.00054,120]
[402974071,1769020288282,-5000.0,0.00054,120]
[402974072,1769020288343,-43635.78283272,0.00054,120]
[402974073,1769020288404,-5000.0,0.00054,120]
[402974074,1769020288465,-5000.0,0.00054,120]
[402974075,1769020288524,-5000.0,0.00054,120]
[402974076,1769020288588,-4629.0,0.00054,120]
[402974077,1769020288652,-62500.0,0.00054,120]
[402974078,1769020288713,-6294.0,0.00054,120]
[402974079,1769020288773,-3572.26945389,0.00054,120]
[402974080,1769020288833,-1148.64227218,0.00054,120]
[402974081,1769020288891,-18708.80808576,0.00054,120]
[402974082,1769020288950,-599.67634039,0.00054,120]
[402974083,1769020289017,-151.0,0.00054,120]
[402974084,1769020289082,-1083.94,0.00054,30]
[402974085,1769020289147,-797.0,0.00054095,120]
[402974086,1769020289214,-29821.82,0.0005411,120]
[402974087,1769020289277,-84171.0,0.00054153,120]
[402974088,1769020289341,-5056.0,0.000542,120]
[402974089,1769020289401,-238.87022568,0.00054246,120]
[402974090,1769020289462,-150.0,0.00054285,120]
[402974091,1769020289522,-150.0,0.00054348,120]
[402974092,1769020289589,-84171.0,0.00054353,120]
[402974093,1769020289653,-150.0,0.00054428,120]
[402974094,1769020289714,-239952.2226,0.00054444,30]
[402974095,1769020289776,-205.8,0.00054506,120]
[402974096,1769020289837,-84171.0,0.00054553,120]
[402974097,1769020289897,-150.0,0.00054586,120]
[402974098,1769020289960,-3000.0,0.0005463,79]
[402974099,1769020290025,-797.0,0.00054643,120]
[402974100,1769020290087,-151.0,0.000547,120]
[402974101,1769020290153,-500.0,0.0005474,30]
[402974102,1769020290217,-500.0,0.0005474,60]
[402974103,1769020290280,-500.0,0.0005474,60]
[402974104,1769020290343,-84171.0,0.00054753,120]
[402974105,1769020290404,-500.0,0.00054794,120]
[402974106,1769020290464,-500.0,0.00054794,120]
[402974107,1769020290526,-250.0,0.00054795,30]
[402974108,1769020290593,-250.0,0.00054795,30]
[402974109,1769020290655,-250.0,0.00054795,30]
[402974110,1769020290715,-250.0,0.00054795,30]
[402974111,1769020290773,-250.0,0.00054795,30]
[402974112,1769020290834,-250.0,0.00054795,30]
[402974113,1769020290899,-250.0,0.00054795,30]
[402974114,1769020290966,-2000.0,0.00054795,30]
[402974115,1769020291029,-2000.0,0.00054795,30]
[402974116,1769020291091,-2000.0,0.00054795,30]
[402974117,1769020291154,-2000.0,0.00054795,30]
[402974118,1769020291218,-2000.0,0.00054795,30]
[402974119,1769020291280,-2000.0,0.00054795,30]
[402974120,1769020291342,-2000.0,0.00054795,30]
[402974121,1769020291403,-2000.0,0.00054795,30]
[402974122,1769020291465,-1234.77072154,0.00054795,30]
[402974123,1769020291526,-151.0,0.00054795,30]
[402974124,1769020291589,-500.0,0.00054795,30]
[402974125,1769020291652,-500.0,0.00054795,30]
[402974126,1769020291714,-500.0,0.00054795,30]
[402974127,1769020291777,-250.0,0.00054795,30]
[402974128,1769020291839,-500.0,0.00054795,30]
[402974129,1769020291902,-250.0,0.00054795,30]
[402974130,1769020291967,-500.0,0.00054795,30]
[402974131,1769020292034,-250.0,0.00054795,30]
[402974132,1769020292101,-500.0,0.00054795,30]
[402974133,1769020292165,-250.0,0.00054795,30]
[402974134,1769020292230,-500.0,0.00054795,30]
[402974135,1769020292297,-250.0,0.00054795,30]
[402974136,1769020292362,-250.0,0.00054795,30]
[402974137,1769020292421,-250.0,0.00054795,30]
[402974138,1769020292480,-250.0,0.00054795,30]
[402974139,1769020292540,-250.0,0.00054795,30]
[402974140,1769020292598,-250.0,0.00054795,30]
[402974141,1769020292656,-151.0,0.00054795,60]
[402974142,1769020292839,-900.0,0.00054795,40]
[402974143,1769020292900,-150.0,0.00054795,120]
[402974144,1769020293045,151.0,0.00043171,120]
[402974145,1769020293113,151.0,0.00052998,30]
[402974146,1769020293184,151.0,0.00043171,120]
[402974147,1769020293263,151.0,0.00052998,30]
[402974148,1769020293333,151.0,0.00043171,120]
[402974149,1769020293405,202.281536,0.00043171,120]
[402974150,1769020293471,151.0,0.00052998,30]
[402974151,1769020293547,151.0,0.00052998,30]
[402974152,1769020293616,151.0,0.00052998,30]
[402974153,1769020293685,151.0,0.00052998,30]
[402974154,1769020293750,159.131376,0.00043171,120]
[402974155,1769020293831,151.0,0.00052998,30]
[402974156,1769020293909,151.0,0.00052998,30]
[402974160,1769020312914,-153.0,0.0004,120]
[402974161,1769020312983,-153.0,0.000408,120]
[402974162,1769020313052,-153.0,0.000415,120]
[402974163,1769020313130,-153.0,0.000423,120]
[402974164,1769020313200,-153.0,0.00043,120]
[402974165,1769020313319,-153.0,0.000438,120]
[402974166,1769020313391,-154.7580832,0.00044417,120]
[402974167,1769020313458,-153.0,0.000445,120]
[402974168,1769020313526,-153.0,0.000453,120]
[402974169,1769020313595,-952.10705724,0.00045643,120]
[402974170,1769020313659,-153.0,0.00046,120]
[402974171,1769020313723,-153.0,0.000468,120]
[402974172,1769020313784,-952.10705724,0.00046869,120]
[402974173,1769020313843,-153.0,0.000476,120]
[402974174,1769020313904,-1112.52846869,0.00048095,120]
[402974175,1769020313970,-153.0,0.000483,120]
[402974176,1769020314049,-153.0,0.000491,120]
[402974177,1769020314125,-1112.52846869,0.00049322,120]
[402974178,1769020314200,-581.32774971,0.00049999,120]
[402974179,1769020314268,-1112.52846869,0.00050548,120]
[402974180,1769020314337,-1112.52846869,0.00051774,120]
[402974181,1769020314403,-8331.35699151,0.00053,120]
[402974182,1769020314468,-526602.93995974,0.000548,120]
[402974183,1769020314532,-100150.0,0.000548,120]
[402974184,1769020314597,-6136.0,0.000549,120]
[402974185,1769020314659,-2577.83708581,0.000549,120]
[402974186,1769020314717,-84171.0,0.00054953,120]
[402974187,1769020314773,-262.48735504,0.00055,120]
[402974188,1769020314827,-150.0,0.00055,120]
[402974189,1769020314882,-1000.0,0.00055,120]
[402974190,1769020314945,-2272.63016582,0.00055,120]
[402974191,1769020315009,-214.8595939,0.00055,120]
[402974192,1769020315072,-20000.0,0.00055,120]
[402974193,1769020315134,-2040.24539475,0.00055,120]
[402974194,1769020315198,-10000.0,0.00055,120]
[402974195,1769020315262,-5000.0,0.00055,120]
[402974196,1769020315323,-3031.59,0.00055,120]
[402974197,1769020315378,-236.1,0.00055,120]
[402974198,1769020315437,-500.0,0.00055068,120]
[402974199,1769020315810,-84171.0,0.00055153,120]
[402974200,1769020315865,-797.0,0.00055191,120]
[402974201,1769020315922,-151.0,0.000553,120]
[402974202,1769020315982,-187.56941863,0.00055342,120]
[402974203,1769020316046,-84171.0,0.00055353,120]
[402974204,1769020316113,-4048765.97021265,0.000555,120]
[402974205,1769020336872,-153.0,0.000498,120]
[402974206,1769020336937,-262.36355558,0.0005,120]
[402974207,1769020337002,-153.0,0.000506,120]
[402974208,1769020337080,-153.0,0.000513,120]
[402974209,1769020337155,-153.0,0.000521,120]
[402974210,1769020337231,-153.0,0.000528,120]
[402974211,1769020337298,-153.0,0.000536,120]
[402974212,1769020337362,-153.0,0.000543,120]
[402974213,1769020337428,-153.0,0.000551,120]
[402974214,1769020337491,-951234.02978735,0.000555,120]
[402974215,1769020337552,-4047279.60665707,0.000555,120]
[402974216,1769020340336,-952720.39334293,0.000555,120]
[402974217,1769020340400,-4047279.60665707,0.000555,120]
[402974222,1769020355900,-151.0,0.00043207,120]
[402974223,1769020355974,-151.0,0.00043207,120]
[402974224,1769020356054,-952720.39334293,0.000555,120]
[402974225,1769020356116,-4046977.60665707,0.000555,120]
[402974226,1769020361313,-500.0,0.00055499,120]
[402974227,1769020361370,-500.0,0.00055499,120]
[402974228,1769020361426,-500.0,0.00055499,120]
[402974229,1769020361477,-500.0,0.00055499,120]
[402974230,1769020361534,-500.0,0.00055499,120]
[402974231,1769020361586,-500.0,0.00055499,120]
[402974232,1769020361640,-500.0,0.00055499,120]
[402974233,1769020361691,-500.0,0.00055499,120]
[402974234,1769020361740,-500.0,0.00055499,120]
[402974235,1769020361789,-500.0,0.00055499,120]
[402974236,1769020361838,-500.0,0.00055499,120]
[402974237,1769020361889,-500.0,0.00055499,120]
[402974238,1769020361943,-500.0,0.00055499,120]
[402974239,1769020362008,-500.0,0.00055499,120]
[402974240,1769020362067,-500.0,0.00055499,120]
[402974241,1769020362128,-500.0,0.00055499,120]
[402974242,1769020362185,-500.0,0.00055499,120]
[402974243,1769020362241,-500.0,0.00055499,120]
[402974244,1769020362298,-500.0,0.00055499,120]
[402974245,1769020362353,-500.0,0.00055499,120]
[402974246,1769020362409,-500.0,0.00055499,120]
[402974247,1769020362464,-264.0,0.00055499,120]
[402974248,1769020362518,-500.0,0.00055499,120]
[402974249,1769020362567,-500.0,0.00055499,120]
[402974250,1769020362614,-500.0,0.00055499,120]
[402974251,1769020362663,-209.64382423,0.00055499,120]
[402974252,1769020362713,-635.16951769,0.00055499,120]
[402974253,1769020362762,-500.0,0.00055499,120]
[402974254,1769020362810,-500.0,0.00055499,120]
[402974255,1769020362861,-500.0,0.00055499,120]
[402974256,1769020362926,-500.0,0.00055499,120]
[402974257,1769020362989,-503.51325329,0.00055499,120]
[402974258,1769020363049,-500.0,0.00055499,120]
[402974259,1769020363104,-500.0,0.00055499,120]
[402974260,1769020363160,-500.0,0.00055499,120]
[402974261,1769020363222,-953022.39334293,0.000555,120]
[402974262,1769020363284,-4029865.28006186,0.000555,120]
[402974263,1769020379327,-2000.0,0.00052999,120]
[402974264,1769020379388,-378.707,0.00052999,120]
[402974265,1769020379451,-500.0,0.00055499,120]
[402974266,1769020379505,-500.0,0.00055499,120]
[402974267,1769020379567,-500.0,0.00055499,120]
[402974268,1769020379619,-500.0,0.00055499,120]
[402974269,1769020379673,-500.0,0.00055499,120]
[402974270,1769020379725,-500.0,0.00055499,120]
[402974271,1769020379776,-500.0,0.00055499,120]
[402974272,1769020379832,-500.0,0.00055499,120]
[402974273,1769020379891,-500.0,0.00055499,120]
[402974274,1769020379962,-500.0,0.00055499,120]